bitfinex/quotes_BTCUSD_20250904
["timestamp","ask_amount","ask_price","bid_price","bid_amount"]
[1757027188790,0.21461071,111860.0,111840.0,0.96181214]
[1757027188953,0.21461071,111860.0,111850.0,0.47022476]
[1757027189164,0.21461071,111860.0,111850.0,0.55990562]
[1757027189361,0.21461071,111860.0,111850.0,0.56064562]
[1757027189566,0.02687605,111860.0,111850.0,0.73992652]
[1757027189935,0.18771839,111870.0,111850.0,0.73992652]
[1757027190135,0.18771839,111870.0,111860.0,0.09191599]
[1757027190347,0.2145908,111870.0,111860.0,0.09489092]
[1757027190759,0.2145908,111870.0,111860.0,0.09265599]
[1757027190979,0.2145908,111870.0,111860.0,0.24913599]
[1757027191195,0.53115043,111870.0,111860.0,0.09265599]
[1757027191388,0.53115043,111870.0,111860.0,0.24839599]
[1757027191604,0.53115043,111870.0,111860.0,0.09191599]
[1757027191605,0.53215043,111870.0,111860.0,0.09191599]
[1757027191837,0.22953768,111870.0,111860.0,0.09191599]
[1757027192051,0.17879492,111860.0,111850.0,8.48e-05]
[1757027192261,0.80173418,111860.0,111850.0,0.09200079]
[1757027192471,0.80682418,111860.0,111850.0,0.09200079]
[1757027192905,0.89874017,111860.0,111850.0,8.48e-05]
[1757027193335,0.18388492,111860.0,111850.0,8.48e-05]
[1757027193538,0.49527557,111860.0,111850.0,8.48e-05]
[1757027193797,0.83527557,111860.0,111850.0,0.0010848]
[1757027194039,0.86215574,111860.0,111850.0,0.0010848]
[1757027194240,0.91562875,111860.0,111850.0,0.0010848]
[1757027194884,0.93491055,111860.0,111850.0,0.0010848]
[1757027195091,0.91562875,111860.0,111850.0,0.0010848]
[1757027195296,0.6042381,111860.0,111850.0,0.0010848]
[1757027195913,0.55176509,111860.0,111850.0,0.0010848]
[1757027196129,0.70816509,111860.0,111850.0,0.0010848]
[1757027198009,0.55176509,111860.0,111850.0,0.0018248]
[1757027198427,0.55176509,111860.0,111850.0,0.0010848]
[1757027199199,0.55176509,111860.0,111850.0,0.09300079]
[1757027199407,0.55176509,111860.0,111850.0,0.09374079]
[1757027199621,0.55176509,111860.0,111850.0,0.09300079]
[1757027200988,0.20667509,111860.0,111850.0,0.09374079]
[1757027201190,0.17979492,111860.0,111850.0,0.09374079]
[1757027201405,0.18495492,111860.0,111850.0,0.09300079]
[1757027203151,0.17979492,111860.0,111850.0,0.09597592]
[1757027204571,0.001,111860.0,111850.0,0.83906016]
[1757027204734,0.001,111860.0,111850.0,0.83729503]
[1757027204936,0.18194492,111860.0,111850.0,0.31598079]
[1757027205179,0.18495492,111860.0,111850.0,0.15892079]
[1757027205527,0.18495492,111860.0,111850.0,0.31594079]
[1757027206577,0.18495492,111860.0,111850.0,0.31520079]
[1757027206996,0.18495492,111860.0,111850.0,0.15892079]
[1757027207204,0.18495492,111860.0,111850.0,0.31520079]
[1757027207457,0.18495492,111860.0,111850.0,0.31594079]
[1757027207895,0.17979492,111860.0,111850.0,0.31594079]
[1757027208956,0.18280492,111860.0,111850.0,0.31594079]
[1757027211185,0.17979492,111860.0,111850.0,0.31594079]
[1757027211387,0.17979492,111860.0,111850.0,0.49475169]
[1757027211930,0.17979492,111860.0,111850.0,0.31594079]
[1757027212282,0.17979492,111860.0,111850.0,0.49475169]
[1757027212612,0.17979492,111860.0,111850.0,0.31594079]
[1757027214204,0.17979492,111860.0,111850.0,0.49475169]
[1757027215865,0.17979492,111860.0,111850.0,0.31594079]
[1757027216870,0.18495492,111860.0,111850.0,0.31594079]
[1757027217433,0.17979492,111860.0,111850.0,0.80599521]
[1757027218833,0.17979492,111860.0,111850.0,0.62718431]
[1757027220265,0.17979492,111860.0,111850.0,0.80599521]
[1757027220509,0.18280492,111860.0,111850.0,0.62718431]
[1757027221007,0.17979492,111860.0,111850.0,0.62718431]
[1757027221646,0.17979492,111860.0,111850.0,0.31594079]
[1757027222277,0.17979492,111860.0,111850.0,0.15966079]
[1757027222629,0.18495492,111860.0,111850.0,0.15892079]
[1757027222723,0.18495492,111860.0,111850.0,0.31496079]
[1757027223244,0.18495492,111860.0,111850.0,0.15892079]
[1757027223461,0.18495492,111860.0,111850.0,0.49674682]
[1757027223666,0.18495492,111860.0,111850.0,0.31570079]
[1757027224616,0.18280492,111860.0,111850.0,0.31570079]
[1757027225449,0.18280492,111860.0,111850.0,0.49451169]
[1757027225658,0.18280492,111860.0,111850.0,0.31570079]
[1757027226725,0.18493492,111860.0,111850.0,0.31570079]
[1757027226933,0.18493492,111860.0,111850.0,0.31496079]
[1757027228042,0.18493492,111860.0,111850.0,0.31570079]
[1757027228442,0.18493492,111860.0,111850.0,0.31496079]
[1757027230162,0.18493492,111860.0,111850.0,0.31488079]
[1757027230831,0.18493492,111860.0,111850.0,0.15892079]
[1757027231056,0.49617844,111860.0,111850.0,0.24896079]
[1757027231303,0.21181309,111860.0,111850.0,0.24896079]
[1757027231487,0.52305661,111860.0,111850.0,0.24896079]
[1757027231919,0.21181309,111860.0,111850.0,0.24896079]
[1757027232144,0.52305661,111860.0,111850.0,0.24896079]
[1757027232686,0.67897661,111860.0,111850.0,0.24896079]
[1757027233182,0.7708926,111860.0,111850.0,0.0010848]
[1757027233462,1.1108926,111860.0,111850.0,0.0010848]
[1757027234853,0.79964908,111860.0,111850.0,0.0010848]
[1757027235062,1.1108526,111860.0,111850.0,0.0010848]
[1757027235279,0.9549726,111860.0,111850.0,0.0010848]
[1757027235474,1.1108526,111860.0,111850.0,0.0010848]
[1757027241950,0.9549726,111860.0,111850.0,0.0010848]
[1757027242154,1.1108126,111860.0,111850.0,0.0010848]
[1757027243007,1.13486892,111860.0,111850.0,0.0010848]
[1757027244078,1.13386892,111860.0,111850.0,0.0010848]
[1757027244313,1.17412106,111860.0,111850.0,8.48e-05]
[1757027244539,1.17512106,111860.0,111850.0,8.48e-05]
[1757027244972,1.17412106,111860.0,111850.0,8.48e-05]
[1757027245185,1.17512106,111860.0,111850.0,8.48e-05]
[1757027245655,1.65142057,111860.0,111850.0,8.48e-05]
[1757027245860,1.65138057,111860.0,111850.0,8.48e-05]
[1757027246071,1.39013705,111860.0,111850.0,8.48e-05]
[1757027246486,1.70038057,111860.0,111850.0,8.48e-05]
[1757027246913,1.70238057,111860.0,111850.0,8.48e-05]
[1757027247347,1.70038057,111860.0,111850.0,8.48e-05]
[1757027247562,1.54558057,111860.0,111850.0,8.48e-05]
[1757027247794,1.70538057,111860.0,111850.0,8.48e-05]
[1757027247993,1.70438057,111860.0,111850.0,8.48e-05]
[1757027248206,1.54858057,111860.0,111850.0,8.48e-05]
[1757027248410,1.70634057,111860.0,111850.0,8.48e-05]
[1757027249039,1.55058057,111860.0,111850.0,8.48e-05]
[1757027249282,1.70634057,111860.0,111850.0,8.48e-05]
[1757027251410,1.70634057,111860.0,111850.0,1.962e-05]
[1757027251615,1.68320057,111860.0,111850.0,1.962e-05]
[1757027253713,1.72159818,111860.0,111850.0,1.962e-05]
[1757027254135,2.84800029,111860.0,111850.0,1.962e-05]
[1757027255520,4.09500969,111860.0,111850.0,1.962e-05]
[1757027256436,3.14128907,111860.0,111850.0,1.962e-05]
[1757027257026,3.04555207,111860.0,111850.0,1.962e-05]
[1757027257431,2.36817907,111860.0,111850.0,1.962e-05]
[1757027257682,2.37017907,111860.0,111850.0,1.962e-05]
[1757027258375,3.30492729,111860.0,111850.0,1.962e-05]
[1757027258896,2.21441907,111860.0,111850.0,1.962e-05]
[1757027259053,1.9964759,111860.0,111850.0,1.962e-05]
[1757027259270,2.14583743,111860.0,111850.0,1.962e-05]
[1757027260323,2.12175089,111860.0,111850.0,1.962e-05]
[1757027260573,2.17620329,111860.0,111850.0,1.962e-05]
[1757027260785,2.12802458,111860.0,111850.0,1.962e-05]
[1757027261583,2.17620329,111860.0,111850.0,1.962e-05]
[1757027261787,3.11095151,111860.0,111850.0,1.962e-05]
[1757027262356,4.94714337,111860.0,111850.0,1.962e-05]
[1757027262733,4.97926827,111860.0,111850.0,1.962e-05]
[1757027262974,4.99824067,111860.0,111850.0,1.962e-05]
[1757027263178,4.96611577,111860.0,111850.0,1.962e-05]
[1757027263594,4.96611577,111860.0,111810.0,0.07354631]
[1757027263595,0.51885888,111820.0,111810.0,0.07354631]
[1757027263825,1.05790707,111820.0,111810.0,0.07363132]
[1757027264029,1.39568613,111820.0,111810.0,0.07363132]
[1757027264257,1.73710142,111820.0,111810.0,0.07363132]
[1757027264468,1.73710142,111820.0,111810.0,8.501e-05]
[1757027264885,0.57488775,111820.0,111810.0,0.00082501]
[1757027265106,1.32451691,111820.0,111810.0,0.00082501]
[1757027265511,1.32451691,111820.0,111810.0,0.00182501]
[1757027265724,1.32959691,111820.0,111810.0,0.00182501]
[1757027266106,1.32959691,111820.0,111810.0,0.00108501]
[1757027266321,1.4215129,111820.0,111810.0,0.00208501]
[1757027268949,1.46230807,111820.0,111810.0,0.00208501]
[1757027270165,1.48158285,111820.0,111810.0,0.00208501]
[1757027270365,1.14158285,111820.0,111810.0,0.00208501]
[1757027270566,1.48158285,111820.0,111810.0,0.00208501]
[1757027272908,1.32598285,111820.0,111810.0,0.00208501]
[1757027273151,1.48150285,111820.0,111810.0,0.00208501]
[1757027273682,1.32598285,111820.0,111810.0,0.00208501]
[1757027273879,1.48150285,111820.0,111810.0,0.00208501]
[1757027274323,1.50559617,111820.0,111810.0,0.00208501]
[1757027275120,1.50051617,111820.0,111810.0,0.00282501]
[1757027275344,0.90070227,111820.0,111810.0,0.00282501]
[1757027275550,1.05618227,111820.0,111810.0,0.00329501]
[1757027275821,1.03208895,111820.0,111810.0,0.00329501]
[1757027276023,1.34367169,111820.0,111810.0,0.00282501]
[1757027276226,1.43558768,111820.0,111810.0,0.00282501]
[1757027276631,1.28010768,111820.0,111810.0,0.00282501]
[1757027276820,1.43558768,111820.0,111810.0,0.00282501]
[1757027279792,1.34367169,111820.0,111810.0,0.00282501]
[1757027279994,0.72046621,111820.0,111810.0,0.00282501]
[1757027280196,0.87660895,111820.0,111810.0,0.00329501]
[1757027280449,1.03204895,111820.0,111810.0,0.00282501]
[1757027280720,1.43848768,111820.0,111810.0,0.00282501]
[1757027280900,1.44062768,111820.0,111810.0,0.00282501]
[1757027281103,1.44062768,111820.0,111810.0,0.00208501]
[1757027282445,1.464721,111820.0,111810.0,0.00208501]
[1757027282647,1.44062768,111820.0,111810.0,0.00208501]
[1757027283282,1.464721,111820.0,111810.0,0.00208501]
[1757027283730,0.84155552,111820.0,111810.0,0.00208501]
[1757027283932,1.464721,111820.0,111810.0,0.00208501]
[1757027284572,1.37280501,111820.0,111810.0,0.00208501]
[1757027285184,1.05614227,111820.0,111810.0,0.00282501]
[1757027285439,1.36772501,111820.0,111810.0,0.00282501]
[1757027286033,1.21228501,111820.0,111810.0,0.00282501]
[1757027286272,1.03200895,111820.0,111810.0,0.00282501]
[1757027286484,1.05610227,111820.0,111810.0,0.00282501]
[1757027286692,1.03200895,111820.0,111810.0,0.00282501]
[1757027286932,0.56502621,111820.0,111810.0,0.095211]
[1757027287387,0.87660895,111820.0,111810.0,0.094741]
[1757027287570,0.90371227,111820.0,111810.0,0.094741]
[1757027287922,1.21529501,111820.0,111810.0,0.094741]
[1757027288332,1.19120169,111820.0,111810.0,0.094741]
[1757027288575,1.19325169,111820.0,111810.0,0.094741]
[1757027289172,1.43021021,111820.0,111810.0,0.00208501]
[1757027289408,1.47835985,111820.0,111810.0,0.00208501]
[1757027294995,1.32299985,111820.0,111810.0,0.00208501]
[1757027295199,1.45422353,111820.0,111810.0,0.00208501]
[1757027295398,1.37262501,111820.0,111810.0,0.00208501]
[1757027295975,1.21734501,111820.0,111810.0,0.00208501]
[1757027296199,1.05598227,111820.0,111810.0,0.00282501]
[1757027296411,1.36756501,111820.0,111810.0,0.00282501]
[1757027296624,1.05598227,111820.0,111810.0,0.00282501]
[1757027297242,1.12114911,111820.0,111810.0,0.00282501]
[1757027297864,1.12114911,111820.0,111810.0,0.00208501]
[1757027298078,1.43273185,111820.0,111810.0,0.00208501]
[1757027298633,0.80956637,111820.0,111810.0,0.00208501]
[1757027298848,1.43273185,111820.0,111810.0,0.00208501]
[1757027299475,1.27745185,111820.0,111810.0,0.00208501]
[1757027299685,1.43269185,111820.0,111810.0,0.00208501]
[1757027299899,0.80948637,111820.0,111810.0,0.00208501]
[1757027300113,1.27745185,111820.0,111810.0,0.00208501]
[1757027300320,1.43060185,111820.0,111810.0,0.00282501]
[1757027300503,1.42759185,111820.0,111810.0,0.00282501]
[1757027301120,1.43265185,111820.0,111810.0,0.00282501]
[1757027301327,1.34845169,111820.0,111810.0,0.00208501]
[1757027301530,1.37254501,111820.0,111810.0,0.00208501]
[1757027302363,1.34845169,111820.0,111810.0,0.00208501]
[1757027302768,1.70818407,111820.0,111810.0,0.00208501]
[1757027303536,1.39660133,111820.0,111810.0,0.00208501]
[1757027303745,1.48851732,111820.0,111810.0,0.00208501]
[1757027305139,1.48847732,111820.0,111810.0,0.00208501]
[1757027306428,1.464384,111820.0,111810.0,0.00208501]
[1757027306614,1.48847732,111820.0,111810.0,0.00208501]
[1757027307851,1.24140133,111820.0,111810.0,0.00208501]
[1757027308072,0.56502621,111820.0,111810.0,0.00282501]
[1757027308552,0.87660895,111820.0,111810.0,0.00282501]
[1757027308758,0.56502621,111820.0,111810.0,0.094741]
[1757027308955,0.87660895,111820.0,111810.0,0.094741]
[1757027309793,0.56502621,111820.0,111810.0,0.094741]
[1757027310002,0.87660895,111820.0,111810.0,0.094741]
[1757027311428,1.19325169,111820.0,111810.0,0.094741]
[1757027312170,1.19325169,111820.0,111810.0,0.094001]
[1757027313112,1.19325169,111820.0,111810.0,0.094741]
[1757027313295,1.18819169,111820.0,111810.0,0.094741]
[1757027313739,1.19325169,111820.0,111810.0,0.094741]
[1757027313895,1.19120169,111820.0,111810.0,0.094741]
[1757027314102,1.18819169,111820.0,111810.0,0.094741]
[1757027314893,0.56502621,111820.0,111810.0,0.094741]
[1757027315094,1.18819169,111820.0,111810.0,0.094741]
[1757027315552,0.87659764,111820.0,111810.0,0.094741]
[1757027316423,0.87975764,111820.0,111810.0,0.094741]
[1757027316664,0.56502621,111820.0,111810.0,0.094741]
[1757027316881,0.56502621,111820.0,111810.0,0.09697693]
[1757027317072,0.54575143,111820.0,111810.0,0.09697693]
[1757027317557,0.54575143,111820.0,111810.0,0.094741]
[1757027318321,0.85732286,111820.0,111810.0,0.094741]
[1757027319597,0.54575143,111820.0,111810.0,0.25197693]
[1757027319806,0.54575143,111820.0,111810.0,0.249741]
[1757027321537,0.02689255,111820.0,111810.0,0.42861587]
[1757027321751,0.20575143,111820.0,111810.0,0.56178243]
[1757027321963,0.20575143,111820.0,111810.0,0.250211]
[1757027322165,0.17885888,111820.0,111810.0,0.250211]
[1757027322572,0.17885888,111820.0,111810.0,0.7406573]
[1757027326222,0.17885888,111820.0,111810.0,0.7405373]
[1757027326573,0.17885888,111820.0,111810.0,0.249621]
[1757027326781,0.17885888,111820.0,111810.0,0.42849587]
[1757027330575,0.20890044,111830.0,111810.0,0.42849587]
[1757027330795,0.20890044,111830.0,111820.0,0.09191599]
[1757027330997,0.20574044,111830.0,111820.0,0.09191599]
[1757027331206,0.21097044,111830.0,111820.0,0.24745599]
[1757027331802,0.20574044,111830.0,111820.0,0.24745599]
[1757027332148,0.20574044,111830.0,111820.0,0.42631487]
[1757027332149,0.20572656,111830.0,111820.0,0.42631487]
[1757027332395,0.02688368,111830.0,111820.0,0.7378863]
[1757027332601,0.19095502,111840.0,111820.0,0.7378863]
[1757027332810,0.17884288,111830.0,111820.0,0.7388863]
[1757027333835,0.17884288,111830.0,111820.0,0.7458863]
[1757027334072,0.21783641,111840.0,111820.0,0.7388863]
[1757027334262,0.21783641,111840.0,111830.0,0.06592]
[1757027334417,0.02688139,111840.0,111830.0,0.33741887]
[1757027334632,0.20570828,111840.0,111830.0,0.6489903]
[1757027335149,0.20570828,111840.0,111830.0,0.33741887]
[1757027335558,0.20570828,111840.0,111830.0,0.6519903]
[1757027335879,0.17882689,111840.0,111830.0,0.6519903]
[1757027336206,0.2088861,111850.0,111830.0,0.6489903]
[1757027336402,0.5488861,111850.0,111840.0,0.24891132]
[1757027336620,0.5509561,111850.0,111840.0,0.24741599]
[1757027337029,0.5509561,111850.0,111840.0,0.24737599]
[1757027337500,0.2109561,111850.0,111840.0,0.42620288]
[1757027337711,0.2088861,111850.0,111840.0,0.24737599]
[1757027338086,0.2057261,111850.0,111840.0,0.42620288]
[1757027338414,0.2057261,111850.0,111840.0,0.09265599]
[1757027338573,0.2057261,111850.0,111840.0,0.24961132]
[1757027338824,0.2088861,111850.0,111840.0,0.24737599]
[1757027339023,0.2088861,111850.0,111840.0,0.10165599]
[1757027339257,0.2109561,111850.0,111840.0,0.25787132]
[1757027339614,0.2109561,111850.0,111840.0,0.25563599]
[1757027340008,0.2109561,111850.0,111840.0,0.10091599]
[1757027340208,0.2109561,111850.0,111840.0,0.10315132]
[1757027340406,0.2109561,111850.0,111840.0,0.25559599]
[1757027340635,0.52252753,111850.0,111840.0,0.25559599]
[1757027341208,0.2109561,111850.0,111840.0,0.25559599]
[1757027341416,0.52252753,111850.0,111840.0,0.25559599]
[1757027341825,0.02687816,111850.0,111840.0,0.56790742]
[1757027342307,0.20884906,111850.0,111840.0,0.25633599]
[1757027342532,0.21091906,111850.0,111840.0,0.25559599]
[1757027342742,0.86249049,111850.0,111840.0,0.009]
[1757027342956,0.55091906,111850.0,111840.0,0.009]
[1757027343163,0.86249049,111850.0,111840.0,0.16364]
[1757027344419,0.55091906,111850.0,111840.0,0.16364]
[1757027348116,0.55091906,111850.0,111840.0,0.25555599]
[1757027353117,0.55091906,111850.0,111840.0,0.25629599]
[1757027353118,0.21091906,111850.0,111840.0,0.25629599]
[1757027353324,0.21080906,111850.0,111840.0,0.10091599]
[1757027353527,0.21080906,111850.0,111840.0,0.25543599]
[1757027354104,0.21080906,111850.0,111840.0,0.10091599]
[1757027354319,0.21080906,111850.0,111840.0,0.25543599]
[1757027354743,0.21080906,111850.0,111840.0,0.10091599]
[1757027354943,0.52238049,111850.0,111840.0,0.25543599]
[1757027355522,0.21080906,111850.0,111840.0,0.25543599]
[1757027355934,0.86238049,111850.0,111840.0,0.16348]
[1757027356964,0.95429648,111850.0,111840.0,0.009]
[1757027357170,0.99764318,111850.0,111840.0,0.009]
[1757027357798,0.99764318,111850.0,111840.0,0.006]
[1757027357994,0.17884288,111830.0,111820.0,0.15448]
[1757027358200,0.17884288,111830.0,111820.0,0.24639599]
[1757027358420,0.18390288,111830.0,111820.0,0.24639599]
[1757027358862,0.21078594,111830.0,111820.0,0.24639599]
[1757027359496,0.21078594,111830.0,111820.0,0.24713599]
[1757027359714,0.21078594,111830.0,111820.0,0.25413599]
[1757027360548,0.21078594,111830.0,111820.0,0.25813599]
[1757027361089,0.21078594,111830.0,111820.0,0.10291599]
[1757027361336,0.21078594,111830.0,111820.0,0.25739599]
[1757027361535,0.21010385,111830.0,111820.0,0.25739599]
[1757027361956,0.21010385,111830.0,111820.0,0.24639599]
[1757027362306,0.21010385,111830.0,111820.0,0.25239599]
[1757027362729,0.21010385,111830.0,111820.0,0.24639599]
[1757027363198,0.21010385,111830.0,111820.0,0.25239599]
[1757027363409,0.21010385,111830.0,111820.0,0.25539599]
[1757027363853,0.21010385,111830.0,111820.0,0.25239599]
[1757027363967,0.21010385,111830.0,111820.0,0.25313599]
[1757027364169,0.21010385,111830.0,111820.0,0.25613599]
[1757027365228,0.21010385,111830.0,111820.0,0.25539599]
[1757027367251,0.21010385,111830.0,111820.0,0.25531599]
[1757027368250,0.21010385,111830.0,111820.0,0.10091599]
[1757027368456,0.52167528,111830.0,111820.0,0.25527599]
[1757027369325,0.86167528,111830.0,111820.0,0.009]
[1757027369498,0.88098465,111830.0,111820.0,0.009]
[1757027369896,1.03534465,111830.0,111820.0,0.009]
[1757027370335,1.03534465,111830.0,111820.0,0.006]
[1757027370533,0.72377322,111830.0,111820.0,0.008]
[1757027370848,1.03534465,111830.0,111820.0,0.008]
[1757027371083,0.80262,111830.0,111820.0,0.002]
[1757027371303,1.13824775,111830.0,111820.0,0.002]
[1757027371464,1.13824775,111830.0,111820.0,0.007]
[1757027372425,1.22704624,111830.0,111820.0,1e-08]
[1757027372625,1.7038214,111830.0,111820.0,1e-08]
[1757027372830,1.7274914,111830.0,111820.0,1e-08]
[1757027373009,1.41591997,111830.0,111820.0,1e-08]
[1757027373240,1.7274914,111830.0,111820.0,1e-08]
[1757027373671,1.16605805,111820.0,111810.0,8.501e-05]
[1757027373901,1.27728341,111820.0,111810.0,8.501e-05]
[1757027374136,1.43666341,111820.0,111810.0,8.501e-05]
[1757027374389,1.28234341,111820.0,111810.0,8.501e-05]
[1757027374598,1.43666341,111820.0,111810.0,8.501e-05]
[1757027375353,1.54951822,111820.0,111810.0,1e-08]
[1757027375552,1.88578117,111820.0,111810.0,1e-08]
[1757027375758,1.93578117,111820.0,111810.0,1e-08]
[1757027375962,1.98546742,111820.0,111810.0,1e-08]
[1757027376167,3.08425844,111820.0,111810.0,1e-08]
[1757027377455,3.05313401,111820.0,111810.0,1e-08]
[1757027377721,0.51892288,111780.0,111770.0,0.07354631]
[1757027377928,0.98496129,111780.0,111770.0,0.0736315]
[1757027378132,0.98496129,111780.0,111770.0,0.0743715]
[1757027378333,0.86270966,111780.0,111770.0,0.0743715]
[1757027378814,0.86270966,111780.0,111770.0,0.00082519]
[1757027379225,0.70523125,111780.0,111770.0,0.00382519]
[1757027379422,1.01702966,111780.0,111770.0,0.00382519]
[1757027379635,1.02612797,111780.0,111770.0,0.00382519]
[1757027380184,0.87180797,111780.0,111770.0,0.00382519]
[1757027380419,0.86980797,111780.0,111770.0,0.00582519]
[1757027380644,1.18356638,111780.0,111770.0,0.00582519]
[1757027380855,1.33584638,111780.0,111770.0,0.00582519]
[1757027381057,1.02408797,111780.0,111770.0,0.00582519]
[1757027381262,1.02608797,111780.0,111770.0,0.00508519]
[1757027381715,1.18356638,111780.0,111770.0,0.00508519]
[1757027382225,0.87180797,111780.0,111770.0,0.00582519]
[1757027383253,0.87180797,111780.0,111770.0,0.00508519]
[1757027383491,1.18356638,111780.0,111770.0,0.00508519]
[1757027383678,1.3576205,111780.0,111770.0,0.00508519]
[1757027384423,1.33784638,111780.0,111770.0,0.00508519]
[1757027385395,1.3619027,111780.0,111770.0,0.00508519]
[1757027385653,1.38111824,111780.0,111770.0,0.00508519]
[1757027386182,1.38111824,111780.0,111770.0,0.00308519]
[1757027386412,1.38111824,111780.0,111770.0,0.00508519]
[1757027386597,1.47303423,111780.0,111770.0,0.00508519]
[1757027387227,1.58588904,111780.0,111760.0,0.0004]
[1757027387441,0.80248773,111750.0,111740.0,4e-05]
[1757027387652,0.17897091,111750.0,111740.0,4e-05]
[1757027387866,0.17897091,111750.0,111740.0,0.00078]
[1757027387867,0.64855688,111750.0,111740.0,0.00078]
[1757027388687,0.64855688,111750.0,111740.0,0.00478]
[1757027388889,0.18255847,111750.0,111740.0,0.00478]
[1757027389145,0.65168688,111750.0,111740.0,0.00478]
[1757027389347,0.33679847,111750.0,111740.0,0.00478]
[1757027389559,0.64855688,111750.0,111740.0,0.00478]
[1757027389758,0.18255847,111750.0,111740.0,0.87712014]
[1757027389961,0.18255847,111750.0,111740.0,1.05386974]
[1757027390160,0.18255847,111750.0,111740.0,0.87488281]
[1757027390401,0.18255847,111750.0,111740.0,0.5631244]
[1757027390570,0.18255847,111750.0,111740.0,0.25136599]
[1757027391083,0.18255847,111750.0,111740.0,0.5631244]
[1757027391496,0.18255847,111750.0,111740.0,0.09669599]
[1757027391497,0.49944688,111750.0,111740.0,0.09669599]
[1757027391703,0.83944688,111750.0,111740.0,0.00404]
[1757027392139,0.52768847,111750.0,111740.0,0.00404]
[1757027392346,0.83944688,111750.0,111740.0,0.00404]
[1757027393795,0.52768847,111750.0,111740.0,0.00404]
[1757027394012,0.83944688,111750.0,111740.0,0.00404]
[1757027394228,0.52768847,111750.0,111740.0,0.00478]
[1757027394453,0.83431688,111750.0,111740.0,0.00478]
[1757027394892,0.83944688,111750.0,111740.0,0.00404]
[1757027397249,0.83944688,111750.0,111740.0,0.00342626]
[1757027397440,1.15120529,111750.0,111740.0,0.00342626]
[1757027397664,1.17044329,111750.0,111740.0,0.00342626]
[1757027398038,0.85868488,111750.0,111740.0,0.00342626]
[1757027398243,0.95060087,111750.0,111740.0,0.00342626]
[1757027398501,0.17898693,111740.0,111730.0,0.0004]
[1757027398617,0.80250375,111740.0,111730.0,0.0004]
[1757027398823,0.80763375,111740.0,111730.0,0.0004]
[1757027399031,0.49587534,111740.0,111730.0,0.0004]
[1757027399669,0.49600237,111740.0,111730.0,0.0004]
[1757027400098,0.52291186,111740.0,111730.0,0.0004]
[1757027400538,0.20602345,111740.0,111730.0,0.09305599]
[1757027400706,0.51778186,111740.0,111730.0,0.09305599]
[1757027400911,0.52091186,111740.0,111730.0,0.09405599]
[1757027401213,0.52091186,111740.0,111730.0,0.09605599]
[1757027401635,0.20602345,111740.0,111730.0,0.09605599]
[1757027402407,0.20602345,111740.0,111730.0,0.5619344]
[1757027402605,0.20602345,111740.0,111730.0,0.09605599]
[1757027402837,0.21115345,111740.0,111730.0,0.25017599]
[1757027403410,0.52291186,111740.0,111730.0,0.25017599]
[1757027403778,0.52291186,111740.0,111730.0,0.24943599]
[1757027404003,0.52291186,111740.0,111730.0,0.09531599]
[1757027404677,0.52291186,111740.0,111730.0,0.0034]
[1757027405326,0.54222353,111740.0,111730.0,0.0034]
[1757027409708,0.22533512,111740.0,111730.0,0.31589841]
[1757027409922,0.22735512,111740.0,111730.0,0.00414]
[1757027410106,0.23042512,111740.0,111730.0,0.00414]
[1757027410324,0.54218353,111740.0,111730.0,0.00414]
[1757027410526,0.54218353,111740.0,111730.0,0.0034]
[1757027411577,0.54218353,111740.0,111730.0,0.00414]
[1757027412037,0.54218353,111740.0,111730.0,0.0034]
[1757027414852,0.54218353,111740.0,111730.0,0.00414]
[1757027415066,0.22533512,111740.0,111730.0,0.4078144]
[1757027415505,0.23042512,111740.0,111730.0,0.4078144]
[1757027416365,0.23042512,111740.0,111730.0,0.09531599]
[1757027416578,0.54218353,111740.0,111730.0,0.09531599]
[1757027417178,0.23042512,111740.0,111730.0,0.09531599]
[1757027418361,0.54218353,111740.0,111730.0,0.24931599]
[1757027418586,0.54218353,111740.0,111730.0,0.15736]
[1757027419276,0.54218353,111740.0,111730.0,0.0034]
[1757027419496,0.54218353,111740.0,111730.0,0.15736]
[1757027420954,0.54218353,111740.0,111730.0,0.0034]
[1757027421165,1.46387881,111740.0,111730.0,0.0034]
[1757027421659,1.79969354,111740.0,111730.0,0.0034]
[1757027421873,1.5200163,111740.0,111730.0,0.0034]
[1757027422122,1.54095512,111740.0,111730.0,0.0034]
[1757027422374,1.85271353,111740.0,111730.0,0.0034]
[1757027422599,0.17900295,111730.0,111720.0,0.0004]
[1757027422822,1.29874713,111730.0,111720.0,0.0004]
[1757027423068,1.30383713,111730.0,111720.0,0.0004]
[1757027423287,1.30383713,111730.0,111720.0,1e-08]
[1757027423523,1.39575312,111730.0,111720.0,1e-08]
[1757027423765,1.41980944,111730.0,111720.0,1e-08]
[1757027423982,0.17905102,111700.0,111690.0,0.0004]
[1757027424204,0.95648784,111700.0,111690.0,0.0004]
[1757027424675,0.96157784,111700.0,111690.0,0.0004]
[1757027424877,1.00269515,111700.0,111690.0,0.0004]
[1757027425090,1.00269515,111700.0,111690.0,0.0044]
[1757027425481,1.02961594,111700.0,111690.0,0.0048737]
[1757027425673,1.02961594,111700.0,111690.0,0.0008737]
[1757027426089,1.12153193,111700.0,111690.0,0.0008737]
[1757027426874,1.13066083,111700.0,111690.0,0.0008737]
[1757027427089,1.13066083,111700.0,111690.0,0.0018737]
[1757027427488,0.97674083,111700.0,111690.0,0.0018737]
[1757027427689,1.13066083,111700.0,111690.0,0.0018737]
[1757027428485,0.97674083,111700.0,111690.0,0.0018737]
[1757027428698,1.13066083,111700.0,111690.0,0.0018737]
[1757027431313,1.13062083,111700.0,111690.0,0.0018737]
[1757027431745,1.48737438,111700.0,111690.0,0.0018737]
[1757027431976,1.82737438,111700.0,111690.0,0.0018737]
[1757027433472,1.91929037,111700.0,111690.0,0.0018737]
[1757027433683,1.76541037,111700.0,111690.0,0.0018737]
[1757027433901,1.91929037,111700.0,111690.0,0.0008737]
[1757027434109,1.91929037,111700.0,111690.0,1e-08]
[1757027434944,2.28104878,111700.0,111690.0,1e-08]
[1757027435145,3.05063218,111700.0,111690.0,1e-08]
[1757027435349,3.10063218,111700.0,111690.0,1e-08]
[1757027435746,0.17917935,111620.0,111610.0,0.00087]
[1757027435950,0.17916739,111650.0,111620.0,0.17964728]
[1757027436155,0.17916739,111650.0,111640.0,0.00074]
[1757027436156,0.9848058,111650.0,111640.0,0.00074]
[1757027436380,0.8309258,111650.0,111640.0,0.00121]
[1757027436578,0.8309258,111650.0,111640.0,0.09312599]
[1757027436837,0.85785502,111650.0,111640.0,0.09312599]
[1757027437286,0.54609661,111650.0,111640.0,0.09326629]
[1757027437734,0.54609661,111650.0,111640.0,0.09426629]
[1757027437970,0.17917935,111620.0,111610.0,0.0004]
[1757027438183,0.8316519,111620.0,111610.0,0.09245654]
[1757027438415,0.84081775,111620.0,111610.0,0.00128055]
[1757027438846,0.99465775,111620.0,111610.0,0.00128055]
[1757027439141,0.6821852,111620.0,111610.0,0.00428055]
[1757027439585,0.5283452,111620.0,111610.0,0.00428055]
[1757027439808,0.5283452,111620.0,111610.0,0.41137903]
[1757027440019,0.5283452,111620.0,111610.0,0.40913909]